bitfinex/quotes_SOLUSD_20250717
["timestamp","ask_amount","ask_price","bid_price","bid_amount"]
[1752789971611,9.95420352,175.8,175.79,0.03]
[1752789971982,9.95420352,175.8,175.79,7.78775181]
[1752789972178,9.95420352,175.8,175.79,0.03]
[1752789972592,15.64248565,175.8,175.79,0.03]
[1752789973611,26.0,175.76,175.75,0.03]
[1752789973819,65.29420352,175.76,175.75,1e-08]
[1752789973983,65.97420352,175.76,175.75,1e-08]
[1752789974388,65.97420352,175.76,175.71,0.2]
[1752789974585,35.27420352,175.72,175.71,0.2]
[1752789974806,65.45420352,175.72,175.71,1e-08]
[1752789975014,82.91888749,175.72,175.71,1e-08]
[1752789975378,52.73888749,175.72,175.71,1e-08]
[1752789975582,82.91888749,175.72,175.71,1e-08]
[1752789976517,88.60975933,175.72,175.71,1e-08]
[1752789978785,1.5993,175.71,175.64,7.75775181]
[1752789979008,9.27420352,175.65,175.64,7.75775181]
[1752789979187,39.41420352,175.65,175.64,7.75775181]
[1752789979587,40.10420352,175.65,175.62,0.1]
[1752789979785,9.27420352,175.63,175.62,0.1]
[1752789980012,39.41420352,175.63,175.62,7.85775181]
[1752789980210,0.69,175.68,175.63,7.75775181]
[1752789980409,39.41420352,175.67,175.63,8.46775181]
[1752789980795,30.12,175.66,175.64,8.46775181]
[1752789981014,14.96442771,175.74,175.67,7.75775181]
[1752789981314,9.27420352,175.72,175.69,7.75775181]
[1752789981505,39.39420352,175.71,175.68,7.75775181]
[1752789981813,39.39420352,175.71,175.69,7.75775181]
[1752789981996,30.12,175.71,175.69,7.75775181]
[1752789982719,5.69151963,175.7,175.69,7.75775181]
[1752789983097,5.69151963,175.7,175.68,7.75775181]
[1752789983307,5.69151963,175.7,175.69,7.75775181]
[1752789983621,45.08572315,175.7,175.68,7.75775181]
[1752789984116,9.27420352,175.69,175.66,7.75775181]
[1752789984323,9.27420352,175.67,175.65,7.75775181]
[1752789984493,39.39420352,175.66,175.65,7.75775181]
[1752789984693,26.0,175.68,175.64,7.75775181]
[1752789984694,40.2307777,175.68,175.64,7.75775181]
[1752789984894,35.8124916,175.67,175.65,8.46775181]
[1752789985113,35.8124916,175.67,175.66,0.71]
[1752789985114,30.12,175.67,175.66,0.71]
[1752789985416,30.12,175.67,175.66,8.46775181]
[1752789986814,35.8124916,175.67,175.66,8.49775181]
[1752789987018,5.69151963,175.7,175.69,7.75775181]
[1752789987206,35.79151963,175.7,175.69,7.75775181]
[1752789987409,35.79151963,175.7,175.69,8.46775181]
[1752789988413,35.79151963,175.7,175.69,7.75775181]
[1752789988791,5.69127371,175.71,175.69,8.46775181]
[1752789989113,30.1,175.7,175.69,17.03195533]
[1752789989312,0.06,175.72,175.71,7.75775181]
[1752789989620,0.06,175.72,175.71,17.03195533]
[1752789989916,0.06,175.72,175.71,17.74195533]
[1752789990514,0.06,175.72,175.71,34.5266393]
[1752789990701,0.06,175.72,175.71,35.09575887]
[1752789991016,0.06,175.72,175.71,40.78695459]
[1752789991217,0.06,175.72,175.71,24.00227062]
[1752789991418,0.06,175.72,175.71,23.43315105]
[1752789991895,0.06,175.72,175.71,66.78695459]
[1752789992323,30.1,175.79,175.71,81.01494389]
[1752789992495,5.68768858,175.82,175.81,7.75775181]
[1752789992697,35.78768858,175.82,175.81,7.75775181]
[1752789992916,45.0618921,175.82,175.8,7.75775181]
[1752789993116,26.0,175.78,175.72,7.75775181]
[1752789993298,9.27420352,175.73,175.7,7.75775181]
[1752789993493,9.27420352,175.73,175.67,9.98420352]
[1752789993494,30.1,175.72,175.68,7.75775181]
[1752789993700,39.37420352,175.72,175.7,7.75775181]
[1752789994003,39.37420352,175.72,175.71,7.75775181]
[1752789994611,40.06420352,175.72,175.67,7.75775181]
[1752789994827,0.69,175.71,175.67,7.75775181]
[1752789995017,14.96572315,175.7,175.66,7.78775181]
[1752789995321,39.45420352,175.69,175.66,7.78775181]
[1752789995824,30.18,175.69,175.68,7.75775181]
[1752789995998,30.18,175.69,175.66,0.74]
[1752789995999,30.18,175.69,175.67,7.75775181]
[1752789996610,39.45420352,175.69,175.67,7.75775181]
[1752789996924,45.14622526,175.69,175.67,7.75775181]
[1752789997098,45.14622526,175.69,175.66,7.78775181]
[1752789997708,45.14622526,175.69,175.67,7.75775181]
[1752789997914,45.14622526,175.69,175.68,7.75775181]
[1752789998200,45.14622526,175.69,175.67,7.75775181]
[1752789998397,30.18,175.69,175.68,7.75775181]
[1752789999402,5.69121054,175.71,175.68,0.71]
[1752789999612,30.16,175.7,175.69,8.46775181]
[1752790000627,30.16,175.7,175.69,7.75775181]
[1752790001201,5.6912967,175.71,175.7,7.75775181]
[1752790001426,35.8312967,175.71,175.7,7.75775181]
[1752790002239,45.79550022,175.71,175.69,7.75775181]
[1752790002418,36.5212967,175.71,175.7,7.75775181]
[1752790002608,45.79550022,175.71,175.7,7.75775181]
[1752790003212,35.8312967,175.71,175.7,7.75775181]
[1752790003416,45.10550022,175.71,175.7,7.75775181]
[1752790003613,46.75568093,175.78,175.7,7.75775181]
[1752790003614,26.0,175.74,175.71,7.75775181]
[1752790003810,30.12,175.73,175.72,7.75775181]
[1752790004214,35.81054799,175.73,175.72,7.75775181]
[1752790004532,45.08475151,175.73,175.72,7.75775181]
[1752790004908,35.81054799,175.73,175.72,7.75775181]
[1752790005317,30.12,175.73,175.72,7.75775181]
[1752790005631,15.65216211,175.81,175.79,7.75775181]
[1752790005931,40.06420352,175.8,175.79,7.75775181]
[1752790006121,45.75248565,175.8,175.79,7.75775181]
[1752790006514,45.75248565,175.8,175.78,7.75775181]
[1752790006817,9.96420352,175.79,175.76,7.75775181]
[1752790007020,9.27420352,175.77,175.76,7.75775181]
[1752790007230,9.96420352,175.77,175.76,7.75775181]
[1752790007813,26.0,175.75,175.74,7.75775181]
[1752790008010,65.37420352,175.75,175.74,7.75775181]
[1752790008250,66.06420352,175.75,175.74,7.75775181]
[1752790008451,71.75410394,175.75,175.74,7.75775181]
[1752790009328,26.0,175.75,175.74,7.75775181]
[1752790009641,56.08,175.75,175.74,7.75775181]
[1752790010228,65.35420352,175.75,175.74,7.75775181]
[1752790010429,71.04410394,175.75,175.74,7.75775181]
[1752790011043,71.71410394,175.75,175.74,7.75775181]
[1752790011941,71.71410394,175.75,175.73,7.75775181]
[1752790012120,9.94420352,175.74,175.72,7.78775181]
[1752790012319,30.08,175.73,175.72,7.78775181]
[1752790013047,35.77054799,175.73,175.72,7.78775181]
[1752790013824,45.04475151,175.73,175.72,7.78775181]
[1752790014133,45.04475151,175.73,175.72,0.03]
[1752790014335,45.71475151,175.73,175.72,0.03]
[1752790014861,45.04475151,175.73,175.72,7.78775181]
[1752790016719,45.04475151,175.73,175.72,0.03]
[1752790017238,45.04475151,175.73,175.72,7.78775181]
[1752790018339,45.04475151,175.73,175.72,0.03]
[1752790018536,45.04475151,175.73,175.72,7.78775181]
[1752790019048,45.04475151,175.73,175.72,0.03]
[1752790020351,45.04475151,175.73,175.72,7.78775181]
[1752790021257,45.04475151,175.73,175.72,0.03]
[1752790021454,35.77054799,175.73,175.72,0.03]
[1752790021660,45.04475151,175.73,175.72,7.78775181]
[1752790021872,5.68957669,175.76,175.72,17.74195533]
[1752790022169,5.68860572,175.79,175.77,7.75775181]
[1752790022452,5.68795859,175.81,175.8,7.75775181]
[1752790022637,35.72795859,175.81,175.8,8.43775181]
[1752790022831,30.04,175.81,175.8,17.71195533]
[1752790023034,0.06,175.82,175.81,7.75775181]
[1752790023237,35.78763508,175.82,175.81,7.75775181]
[1752790024126,30.1,175.82,175.81,7.75775181]
[1752790024330,0.06,175.82,175.81,17.71195533]
[1752790024646,0.06,175.82,175.81,8.43775181]
[1752790024647,5.74763508,175.82,175.81,8.43775181]
[1752790025228,0.06,175.82,175.81,17.71195533]
[1752790025658,0.06,175.82,175.81,8.43775181]
[1752790025828,0.06,175.82,175.81,17.71195533]
[1752790026658,0.06,175.82,175.81,23.39991392]
[1752790026838,0.06,175.82,175.81,17.71195533]
[1752790027154,0.06,175.82,175.81,23.39991392]
[1752790028356,0.06,175.82,175.81,14.1257104]
[1752790028676,0.06,175.82,175.81,7.75775181]
[1752790028841,30.1,175.82,175.81,7.75775181]
[1752790030084,35.78763508,175.82,175.81,7.75775181]
[1752790030267,30.1,175.82,175.81,7.75775181]
[1752790031835,0.06,175.82,175.81,17.71195533]
[1752790032035,0.06,175.82,175.81,23.39991392]
[1752790032545,0.06,175.83,175.82,50.54243578]
[1752790032754,0.06,175.86,175.85,24.54243578]
[1752790032958,0.2,175.9,175.86,16.78468397]
[1752790033142,0.2,175.9,175.89,17.03195533]
[1752790033776,0.2,175.9,175.89,8.43775181]
[1752790033977,0.2,175.9,175.89,17.71195533]
[1752790034275,0.2,175.9,175.89,23.39732686]
[1752790035389,0.2,175.9,175.89,40.18201083]
[1752790035546,0.06,175.91,175.9,50.54243578]
[1752790035874,0.06,175.94,175.93,24.54243578]
[1752790036043,0.06,175.94,175.93,34.38504718]
[1752790036242,0.06,175.94,175.93,35.06504718]
[1752790036468,0.2,175.99,175.98,7.75775181]
[1752790036751,30.2,175.99,175.98,17.03195533]
[1752790037079,30.2,175.99,175.98,17.71195533]
[1752790037278,30.2,175.99,175.98,34.4966393]
[1752790037441,0.2,175.99,175.98,34.4966393]
[1752790038064,0.2,175.99,175.98,40.17910321]
[1752790038261,0.2,175.99,175.98,34.4966393]
[1752790038453,0.2,175.99,175.98,40.17910321]
[1752790041268,0.2,175.99,175.98,8.43775181]
[1752790041460,0.2,175.99,175.98,17.03195533]
[1752790041658,0.2,175.99,175.98,17.71195533]
[1752790042452,0.2,175.99,175.98,40.17910321]
[1752790043058,0.2,175.99,175.98,70.17910321]
[1752790043855,0.2,175.99,175.98,24.54243578]
[1752790044062,0.2,175.99,175.98,17.03195533]
[1752790044265,0.2,175.99,175.98,7.75775181]
[1752790044481,0.2,175.99,175.98,17.03195533]
[1752790045174,0.2,175.99,175.98,17.71195533]
[1752790045353,0.2,175.99,175.98,40.17910321]
[1752790047464,0.2,175.99,175.98,70.15910321]
[1752790047867,0.2,176.0,175.99,24.54243578]
[1752790048062,0.2,176.01,176.0,33.8166393]
[1752790048266,0.2,176.01,176.0,70.4966393]
[1752790048656,0.2,176.01,176.0,96.4966393]
[1752790048872,0.2,176.04,176.0,96.4966393]
[1752790049078,0.2,176.04,176.03,33.8166393]
[1752790049584,0.2,176.04,176.03,34.4966393]
[1752790049880,0.2,176.04,176.03,33.8166393]
[1752790050563,0.2,176.04,176.03,40.17748915]
[1752790050758,0.2,176.04,176.03,40.74557413]
[1752790050961,0.2,176.04,176.03,34.4966393]
[1752790051569,0.2,176.04,176.03,7.75775181]
[1752790051765,6.58052715,176.04,176.03,7.75775181]
[1752790053656,15.85473067,176.04,176.02,7.75775181]
[1752790053857,15.85473067,176.04,176.01,7.75775181]
[1752790053858,5.68117259,176.02,176.01,7.75775181]
[1752790054179,57.48100759,176.02,175.96,7.75775181]
[1752790054478,57.48100759,176.02,175.99,7.75775181]
[1752790054479,0.7,176.01,175.99,7.75775181]
[1752790054676,0.7,176.01,176.0,7.75775181]
[1752790055070,9.97420352,176.01,176.0,7.75775181]
[1752790055255,9.97420352,176.01,175.99,7.75775181]
[1752790055458,26.0,176.0,175.97,7.75775181]
[1752790055675,9.27420352,175.98,175.94,0.03]
[1752790055984,14.95763631,175.95,175.94,7.78775181]
[1752790056286,15.65763631,175.95,175.94,0.03]
[1752790056665,5.68278683,175.97,175.95,7.75775181]
[1752790056982,5.68278683,175.97,175.96,7.75775181]
[1752790057183,15.65699035,175.97,175.96,7.75775181]
[1752790058476,6.38278683,175.97,175.96,7.75775181]
[1752790058770,15.65699035,175.97,175.94,0.03]
[1752790058971,9.27420352,175.95,175.94,0.03]
[1752790059576,9.97420352,175.95,175.94,0.03]
[1752790059775,9.97420352,175.95,175.94,7.78775181]
[1752790059978,15.65763631,175.95,175.94,0.03]
[1752790060280,15.65763631,175.95,175.94,1e-08]
[1752790060477,15.65763631,175.95,175.94,7.75775182]
[1752790060683,15.65763631,175.95,175.94,1e-08]
[1752790060884,15.65763631,175.95,175.94,7.75775182]
[1752790061182,15.65763631,175.95,175.94,1e-08]
[1752790061365,6.38343279,175.95,175.94,7.75775182]
[1752790061565,15.65763631,175.95,175.94,7.75775182]
[1752790061767,6.38343279,175.95,175.94,7.75775182]
[1752790061976,5.68310979,175.96,175.94,7.75775182]
[1752790062170,5.68310979,175.96,175.95,7.75775181]
[1752790062993,6.38310979,175.96,175.95,7.75775181]
[1752790063189,5.68310979,175.96,175.95,7.75775181]
[1752790063862,5.68283971,175.97,175.95,17.03195533]
[1752790064069,5.68283971,175.97,175.96,7.75775181]
[1752790064286,44.18567599,175.99,175.98,7.75775181]
[1752790064287,29.98,175.99,175.98,7.75775181]
[1752790065085,1.6227,176.02,176.01,7.75775181]
[1752790065266,5.68084985,176.03,176.02,7.75775181]
[1752790065472,0.2,176.04,176.02,17.03195533]
[1752790065771,0.2,176.04,176.03,17.71195533]
[1752790066385,0.2,176.04,176.03,34.4966393]
[1752790066777,0.2,176.04,176.03,40.17748915]
[1752790068989,0.2,176.04,176.03,7.75775181]
[1752790069190,0.2,176.04,176.03,17.03195533]
[1752790069896,0.2,176.04,176.03,17.70195533]
[1752790070074,0.2,176.04,176.03,17.03195533]
[1752790071877,0.2,176.04,176.03,23.38280518]
[1752790072077,0.2,176.04,176.03,23.95089016]
[1752790072391,0.2,176.04,176.03,40.73557413]
[1752790072890,0.2,176.04,176.03,31.46137061]
[1752790073088,0.2,176.04,176.03,8.99583679]
[1752790073291,0.2,176.04,176.03,40.16748915]
[1752790076106,0.2,176.04,176.03,34.4866393]
[1752790076784,0.2,176.04,176.03,33.8166393]
[1752790077374,0.2,176.04,176.03,34.4866393]
[1752790078604,0.2,176.04,176.03,7.75775181]
[1752790078784,0.2,176.04,176.03,17.03195533]
[1752790079606,0.2,176.04,176.03,17.70195533]
[1752790080086,0.2,176.04,176.03,17.03195533]
[1752790081184,5.88052715,176.04,176.03,7.75775181]
[1752790081503,6.58052715,176.04,176.03,7.75775181]
[1752790081801,0.2,176.04,176.03,17.03195533]
[1752790082192,5.88052715,176.04,176.03,7.75775181]
[1752790082703,0.2,176.04,176.03,7.75775181]
[1752790082901,0.2,176.04,176.03,17.03195533]
[1752790083209,0.2,176.04,176.03,23.38280518]
[1752790083377,0.2,176.04,176.03,17.70195533]
[1752790083784,0.9,176.04,176.03,7.75775181]
[1752790084091,6.58052715,176.04,176.03,7.75775181]
[1752790084803,15.85473067,176.04,176.03,7.75775181]
[1752790085104,15.85473067,176.04,176.02,7.75775181]
[1752790085310,15.15473067,176.04,176.02,7.75775181]
[1752790085495,9.97420352,176.03,176.01,7.78775181]
[1752790085801,9.97420352,176.03,175.94,5.6837216]
[1752790085802,36.78640352,176.02,175.94,1e-08]
[1752790086011,9.27420352,175.97,175.94,1e-08]
[1752790086508,6.38245922,175.99,175.94,9.27420353]
[1752790086683,5.68245922,175.99,175.95,9.27420352]
[1752790086886,26.7,176.01,175.97,9.27420352]
[1752790087104,0.7,176.0,175.96,9.27420352]
[1752790087305,0.7,175.99,175.94,1e-08]
[1752790087623,0.7,175.99,175.95,9.27420352]
[1752790087803,0.7,175.99,175.96,9.27420352]
[1752790088210,0.7,175.99,175.97,9.27420352]
[1752790088407,6.38220416,175.99,175.96,9.27420352]
[1752790088589,6.38220416,175.99,175.97,9.27420352]
[1752790088792,6.38220416,175.99,175.94,1e-08]
[1752790088990,6.38220416,175.99,175.97,9.27420352]
[1752790089827,6.38220416,175.99,175.96,9.27420352]
[1752790090141,0.7,175.98,175.94,1e-08]
[1752790090416,6.38272633,175.98,175.95,9.27420352]
[1752790090592,6.38272633,175.98,175.96,9.27420352]
[1752790091294,0.7,175.97,175.94,1e-08]
[1752790091710,0.7,175.96,175.94,1e-08]
[1752790092419,5.68343279,175.95,175.94,1e-08]
[1752790094329,2.2122,176.02,175.95,16.78468397]
[1752790094523,6.38117259,176.02,176.01,9.27420352]
[1752790094810,6.38117259,176.02,176.0,9.27420352]
[1752790095119,6.38117259,176.02,176.01,9.27420352]
[1752790095319,5.68117259,176.02,176.01,9.27420352]
[1752790095515,0.2,176.04,176.01,9.94420352]
[1752790095717,0.2,176.04,176.03,9.27420352]
[1752790096435,0.2,176.04,176.03,9.94420352]
[1752790098136,0.2,176.04,176.03,32.97782232]
[1752790100413,0.2,176.04,176.03,23.7036188]
[1752790100612,0.2,176.04,176.03,32.97782232]
[1752790101336,0.2,176.04,176.03,9.27420352]
[1752790102608,0.2,176.04,176.03,9.95420352]
[1752790104237,0.2,176.04,176.03,32.41973734]
[1752790104424,0.2,176.04,176.03,41.69394086]
[1752790104625,0.2,176.04,176.03,32.41973734]
[1752790105036,5.73817373,176.12,176.03,41.69394086]
[1752790105238,5.73817373,176.12,176.11,9.27420352]
[1752790105428,6.42817373,176.12,176.11,9.27420352]
[1752790105628,0.06,176.12,176.11,9.27420352]
[1752790105826,6.42807614,176.12,176.07,9.27420352]
[1752790106020,0.69,176.11,176.08,9.27420352]
[1752790106216,0.69,176.11,176.01,7.26259651]
[1752790106431,9.27420352,176.1,176.04,9.27420352]
[1752790106638,0.69,176.09,176.02,26.56811725]
[1752790106818,0.69,176.09,175.99,0.68]
[1752790106819,9.27420352,176.08,175.99,0.68]
[1752790107018,9.96420352,176.07,176.01,9.27420352]
[1752790107229,0.69,176.07,176.04,9.27420352]
[1752790107537,29.94,176.08,176.03,9.27420352]
[1752790107722,0.69,176.06,176.03,9.27420352]
[1752790108123,0.69,176.06,176.0,17.46468397]
[1752790108124,0.69,176.05,176.02,9.27420352]
[1752790108315,0.69,176.04,176.02,9.27420352]
[1752790108732,6.37057659,176.04,176.02,9.27420352]
[1752790109624,0.69,176.06,176.03,9.27420352]
[1752790110128,0.69,176.09,176.01,16.78468397]
[1752790110328,5.67934127,176.08,176.03,9.27420352]
[1752790110535,9.96420352,176.07,175.98,5.68242405]
[1752790110715,6.36988185,176.06,176.01,9.27420352]
[1752790111127,0.69,176.05,176.01,9.27420352]
[1752790111334,5.67988185,176.06,176.01,9.27420352]
[1752790111524,0.69,176.04,176.01,9.27420352]
[1752790111933,5.67988185,176.06,176.01,9.27420352]
[1752790111934,5.67988185,176.06,176.01,0.68]
[1752790112122,0.69,176.07,176.04,9.27420352]
[1752790112123,6.36964685,176.07,176.04,9.27420352]
[1752790112722,5.67964685,176.07,176.03,9.27420352]
[1752790112940,0.69,176.06,176.0,22.46646564]
[1752790113145,0.69,176.06,176.0,23.14646564]
[1752790113446,0.69,176.06,176.03,9.27420352]
[1752790114344,6.36923671,176.08,176.03,9.27420352]
[1752790114547,5.73797794,176.12,176.07,9.27420352]
[1752790114757,5.73797794,176.12,176.11,9.27420352]
[1752790114930,5.73797794,176.12,176.08,0.68]
[1752790115245,6.42797794,176.12,176.11,9.27420352]
[1752790115452,0.75,176.12,176.11,9.27420352]
[1752790115656,0.06,176.12,176.11,9.27420352]
[1752790115951,5.73794685,176.12,176.11,9.27420352]
[1752790116330,0.06,176.12,176.11,9.27420352]
[1752790117543,0.06,176.12,176.07,32.92744781]
[1752790117741,0.06,176.12,176.11,9.27420352]
[1752790118057,0.75,176.12,176.1,9.27420352]
[1752790118228,5.6785917,176.1,176.03,0.68]
[1752790118431,0.69,176.09,176.06,9.27420352]
[1752790118752,5.6785917,176.1,176.03,6.36074104]
[1752790118753,0.69,176.08,176.07,9.27420352]
[1752790118933,0.69,176.08,176.06,9.27420352]
[1752790119248,0.69,176.07,176.03,9.27420352]
[1752790119463,0.69,176.06,176.02,9.27420352]
[1752790119762,0.69,176.06,176.03,9.27420352]
[1752790120229,0.69,176.06,176.04,9.27420352]
[1752790120826,5.67934154,176.08,176.05,9.27420352]
[1752790121233,0.69,176.07,176.05,9.27420352]
[1752790121434,0.69,176.07,176.04,9.27420352]
[1752790121648,0.69,176.07,176.05,9.27420352]
[1752790122347,5.6785917,176.1,176.05,9.27420352]
[1752790122544,0.69,176.09,176.05,9.27420352]
[1752790122847,0.69,176.08,176.05,9.27420352]
[1752790123070,5.6785917,176.1,176.01,16.81468397]
[1752790123071,5.6785917,176.1,176.07,9.27420352]
[1752790123250,5.73795521,176.12,176.07,9.27420352]
[1752790123553,0.69,176.11,176.07,9.27420352]
[1752790123862,0.69,176.1,176.08,9.27420352]
[1752790124024,5.73795521,176.12,176.08,9.27420352]
[1752790124230,0.69,176.11,176.08,9.27420352]
[1752790124461,6.36856508,176.11,176.08,9.27420352]
[1752790124929,5.73802652,176.12,176.09,9.27420352]
[1752790125129,5.73802652,176.12,176.1,9.27420352]
[1752790125329,0.06,176.12,176.11,9.27420352]
[1752790125831,0.06,176.12,176.11,9.95420352]
[1752790126539,0.06,176.12,176.11,15.63247278]
[1752790127247,0.06,176.12,176.08,26.56792367]
[1752790127551,0.06,176.12,176.11,9.27420352]
[1752790129463,0.75,176.12,176.09,9.27420352]
[1752790130034,0.69,176.11,176.04,0.56805271]
[1752790130247,0.69,176.11,176.06,9.27420352]
[1752790130452,9.96420352,176.11,176.05,9.27420352]
[1752790130656,0.69,176.1,176.05,9.27420352]
[1752790130834,9.27420352,176.11,176.05,9.27420352]
[1752790131034,9.27420352,176.08,176.02,9.27420352]
[1752790131341,5.67955926,176.07,176.01,0.72]
[1752790131548,6.36955926,176.07,176.02,9.27420352]
[1752790131734,0.69,176.06,176.01,0.03]
[1752790131935,0.69,176.05,176.02,9.27420352]
[1752790132856,5.67955926,176.07,176.02,9.27420352]
[1752790132857,6.36955926,176.07,176.02,9.27420352]
[1752790133157,29.92,176.08,176.04,9.27420352]
[1752790133359,5.67955926,176.07,176.05,9.27420352]
[1752790134052,5.67955926,176.07,176.04,9.27420352]
[1752790134235,29.92,176.08,176.06,9.27420352]
[1752790134430,1.6436,176.1,176.07,9.27420352]
[1752790134659,29.98,176.12,176.09,9.27420352]
[1752790134846,30.67,176.12,176.07,0.69]
[1752790135052,29.98,176.12,176.07,9.27420352]
[1752790135330,30.67,176.12,176.07,6.36947209]
[1752790135536,36.34794685,176.12,176.1,9.27420352]
[1752790135864,36.34794685,176.12,176.09,9.27420352]
[1752790136040,36.34794685,176.12,176.06,6.36978001]
[1752790136041,30.67,176.12,176.1,9.27420352]
[1752790136243,29.98,176.12,176.1,9.27420352]
[1752790136455,35.65800258,176.12,176.1,9.27420352]
[1752790136957,5.73800258,176.12,176.1,9.27420352]
[1752790137455,6.42800258,176.12,176.1,9.27420352]
[1752790137877,6.42800258,176.12,176.06,6.36978001]
[1752790138076,0.06,176.12,176.11,9.27420352]
[1752790138272,0.06,176.12,176.11,35.96420352]
[1752790138566,0.06,176.12,176.1,0.56785917]
[1752790138734,0.06,176.12,176.11,9.27420352]
[1752790139141,0.06,176.12,176.09,26.0]
[1752790139345,0.06,176.12,176.11,9.27420352]
[1752790140267,0.06,176.12,176.11,9.96420352]
[1752790140558,0.06,176.12,176.11,9.27420352]
[1752790141545,0.06,176.12,176.09,32.36887716]
[1752790141856,0.06,176.12,176.11,26.05888749]
[1752790142059,0.06,176.12,176.11,52.05888749]
[1752790142242,0.06,176.12,176.11,48.46295323]
[1752790142436,0.06,176.12,176.11,52.74888749]
[1752790143262,0.06,176.12,176.11,58.42715675]
[1752790144071,0.06,176.16,176.11,58.42715675]
[1752790144072,0.06,176.16,176.15,52.05888749]
[1752790144237,0.06,176.16,176.15,67.01007085]
[1752790144441,0.06,176.16,176.15,58.42586733]
[1752790145138,0.06,176.16,176.15,57.73586733]
[1752790145758,0.06,176.16,176.11,22.46269569]
[1752790145935,0.75,176.16,176.14,9.27420352]
[1752790146136,0.75,176.16,176.15,9.27420352]
[1752790146555,0.75,176.16,176.11,23.15285559]
[1752790146753,0.06,176.16,176.12,0.69]
[1752790146953,0.06,176.16,176.15,9.27420352]
[1752790147937,0.06,176.16,176.15,9.96420352]
[1752790148356,0.06,176.16,176.15,15.64118336]
[1752790148568,0.06,176.16,176.15,58.42586733]
[1752790151159,0.06,176.16,176.15,35.27420352]
[1752790151468,0.06,176.2,176.19,42.78468397]
[1752790151764,0.06,176.2,176.19,52.74888749]
[1752790151966,0.06,176.2,176.19,53.31645659]
[1752790152562,0.06,176.2,176.19,58.9921476]
[1752790155238,0.06,176.2,176.19,9.27420352]
[1752790155442,0.06,176.2,176.19,9.96420352]
[1752790155644,0.2,176.22,176.21,26.0]
[1752790155851,0.1,176.26,176.22,42.78468397]
[1752790156050,0.1,176.26,176.23,9.84164379]
[1752790156279,0.1,176.26,176.23,10.53164379]
[1752790157145,0.1,176.26,176.23,16.20604655]
[1752790157776,0.1,176.26,176.24,16.78468397]
[1752790157946,0.1,176.3,176.29,52.05888749]
[1752790158143,0.1,176.3,176.29,52.62613463]
[1752790158342,0.1,176.3,176.29,53.31613463]
[1752790159269,0.1,176.3,176.29,58.98860612]
[1752790159482,2.3049,176.37,176.32,26.0]
[1752790159642,5.9207,176.41,176.36,9.27420352]
[1752790159980,5.66916115,176.4,176.33,0.69]
[1752790160345,5.66916115,176.4,176.36,9.27420352]
[1752790161250,29.11570027,176.4,176.34,9.27420352]
[1752790161572,9.27420352,176.38,176.33,9.27420352]
[1752790161876,0.67,176.37,176.33,9.27420352]
[1752790162560,5.67022,176.36,176.33,9.27420352]
[1752790162761,5.67022,176.36,176.32,9.27420352]
[1752790162762,0.67,176.35,176.32,9.27420352]
[1752790162982,0.67,176.34,176.32,9.27420352]
[1752790164474,0.67,176.39,176.33,9.27420352]
[1752790164676,0.67,176.39,176.38,9.27420352]
[1752790164852,12.25935584,176.41,176.38,9.27420352]
[1752790165051,12.25935584,176.41,176.4,9.27420352]
[1752790165271,0.67,176.41,176.4,9.27420352]
[1752790165472,1.5916,176.42,176.4,9.27420352]
[1752790165754,6.7622,176.45,176.41,9.27420352]
[1752790166062,0.67,176.44,176.41,9.27420352]
[1752790166464,5.66829157,176.42,176.35,6.23733828]
[1752790166672,5.66829157,176.42,176.38,9.27420352]
[1752790166863,0.67,176.41,176.38,9.27420352]
[1752790167469,0.67,176.41,176.39,9.27420352]
[1752790167875,0.67,176.41,176.35,0.56705415]
[1752790168071,0.67,176.41,176.37,9.27420352]
[1752790168278,0.67,176.4,176.37,9.27420352]
[1752790168684,6.0922,176.45,176.39,9.27420352]
[1752790168981,29.84,176.44,176.41,9.27420352]
[1752790169188,30.51,176.44,176.4,9.27420352]
[1752790169359,9.29377757,176.48,176.43,9.27420352]
[1752790169557,9.29377757,176.48,176.41,0.69]
[1752790169558,9.94420352,176.47,176.41,26.0]
[1752790169770,9.27420352,176.45,176.39,9.27420352]